fUSD/lending_fUSD_20260427
["ID","MTS","AMOUNT","RATE_DAILY","PERIOD"]
[421248361,1777287139933,-500.0,0.00036438,120]
[421248362,1777287139943,-500.0,0.00036438,120]
[421248363,1777287139953,-685.94,0.00036438,120]
[421248364,1777287139962,-996.26,0.00036438,120]
[421248365,1777287139972,-987.31,0.00036438,120]
[421248366,1777287139981,-977.11,0.00036438,120]
[421248367,1777287139990,-1114.4,0.00036438,120]
[421248368,1777287139999,-922.87,0.00036438,120]
[421248369,1777287140009,-694.64,0.00036438,120]
[421248370,1777287140018,-876.6,0.00036438,120]
[421248371,1777287140028,-1292.17,0.00036438,120]
[421248372,1777287140037,-500.0,0.00036438,120]
[421248373,1777287140046,-2804.65,0.00036438,120]
[421248374,1777287140055,-831.75,0.00036438,14]
[421248375,1777287140064,-565.64715449,0.00036438,120]
[421248376,1777287140074,-500.0,0.00036438,14]
[421248377,1777287140084,-695.08,0.00036438,120]
[421248378,1777287140093,-975.03,0.00036438,120]
[421248379,1777287140103,-500.0,0.00036438,120]
[421248380,1777287140112,-667.25,0.00036438,120]
[421248381,1777287140121,-500.0,0.00036438,120]
[421248382,1777287140130,-500.0,0.00036438,120]
[421248383,1777287140140,-452.67377944,0.00036438,120]
[421248384,1777287140150,-514.22,0.00036438,120]
[421248385,1777287140159,-808.81,0.00036438,120]
[421248386,1777287140167,-656.37,0.00036438,120]
[421248387,1777287140178,-924.49,0.00036438,120]
[421248388,1777287140188,-809.84,0.00036438,120]
[421248389,1777287140196,-1754.83,0.00036438,120]
[421248390,1777287140206,-816.58,0.00036438,120]
[421248391,1777287140215,-1699.99,0.00036438,120]
[421248392,1777287140224,-963.43,0.00036438,120]
[421248393,1777287140233,-988.21,0.00036438,120]
[421248394,1777287140243,-803.53,0.00036438,120]
[421248395,1777287140252,-500.0,0.00036438,120]
[421248396,1777287140262,-983.75,0.00036438,120]
[421248397,1777287140271,-806.48,0.00036438,120]
[421248398,1777287140280,-1721.56,0.00036438,120]
[421248399,1777287140290,-899.89,0.00036438,120]
[421248400,1777287140299,-1666.52,0.00036438,120]
[421248401,1777287140308,-903.54,0.00036438,120]
[421248402,1777287140317,-640.16,0.00036438,120]
[421248403,1777287140326,-2805.42,0.00036438,120]
[421248404,1777287140336,-500.84752826,0.00036438,120]
[421248405,1777287140345,-1658.74,0.00036438,120]
[421248406,1777287140355,-507.17,0.00036438,120]
[421248407,1777287140364,-760.12,0.00036438,120]
[421248408,1777287140373,-1131.48,0.00036438,120]
[421248409,1777287140383,-500.0,0.00036438,120]
[421248410,1777287140392,-1275.35,0.00036438,120]
[421248411,1777287140402,-1746.47,0.00036438,120]
[421248412,1777287140410,-1186.63,0.00036438,120]
[421248413,1777287140419,-726.02,0.00036438,120]
[421248414,1777287140428,-857.8,0.00036438,120]
[421248415,1777287140437,-497.54123586,0.00036438,120]
[421248416,1777287140446,-942.29,0.00036438,120]
[421248417,1777287140455,-888.77,0.00036438,120]
[421248418,1777287140464,-615.52,0.00036438,120]
[421248419,1777287140473,-500.0,0.00036438,120]
[421248420,1777287140483,-691.21,0.00036438,120]
[421248421,1777287140492,-1549.89,0.00036438,120]
[421248422,1777287140501,-597.1,0.00036438,120]
[421248423,1777287140510,-331.50876327,0.00036438,120]
[421248424,1777287140643,-516.45,0.00036438,120]
[421248425,1777287140653,-646.3,0.00036438,120]
[421248426,1777287140662,-996.25,0.00036438,120]
[421248427,1777287140671,-729.86,0.00036438,120]
[421248428,1777287140681,-862.2,0.00036438,120]
[421248429,1777287140690,-902.68,0.00036438,120]
[421248430,1777287140700,-500.0,0.00036438,120]
[421248431,1777287140709,-932.95,0.00036438,120]
[421248432,1777287140719,-501.5,0.00036438,120]
[421248433,1777287140729,-932.07,0.00036438,120]
[421248434,1777287140738,-638.61,0.00036438,120]
[421248435,1777287140747,-946.6,0.00036438,120]
[421248436,1777287140757,-500.0,0.00036438,120]
[421248437,1777287140766,-1014.18,0.00036438,120]
[421248438,1777287140776,-714.89,0.00036438,120]
[421248439,1777287140786,-1988.17,0.00036438,120]
[421248440,1777287140795,-563.81,0.00036438,120]
[421248441,1777287140804,-500.0,0.00036438,120]
[421248442,1777287140814,-500.0,0.00036438,120]
[421248443,1777287140823,-500.0,0.00036438,7]
[421248444,1777287140833,-885.91,0.00036438,120]
[421248445,1777287140842,-1640.34,0.00036438,120]
[421248446,1777287140851,-500.0,0.00036438,120]
[421248447,1777287140861,-891.92,0.00036438,120]
[421248448,1777287140871,-669.56,0.00036438,120]
[421248449,1777287140880,-500.0,0.00036438,120]
[421248450,1777287140890,-1390.78,0.00036438,120]
[421248451,1777287140899,-500.0,0.00036438,120]
[421248452,1777287140909,-500.0,0.00036438,120]
[421248453,1777287140918,-500.0,0.00036438,120]
[421248454,1777287140928,-668.1,0.00036438,120]
[421248455,1777287140939,-203.07442179,0.00036438,120]
[421248456,1777287140948,-660.18,0.00036438,120]
[421248457,1777287140958,-691.69,0.00036438,120]
[421248458,1777287140968,-691.03,0.00036438,120]
[421248459,1777287140977,-500.0,0.00036438,120]
[421248460,1777287140987,-618.59,0.00036438,30]
[421248461,1777287140996,-922.63,0.00036438,120]
[421248462,1777287141006,-953.58,0.00036438,120]
[421248463,1777287141015,-525.11,0.00036438,120]
[421248464,1777287141024,-4917.9,0.00036438,120]
[421248465,1777287141034,-551.36,0.00036438,120]
[421248466,1777287141043,-392.81714791,0.00036438,120]
[421248467,1777287141053,-840.29,0.00036438,120]
[421248468,1777287141062,-739.88,0.00036438,120]
[421248469,1777287141072,-1800.54,0.00036438,120]
[421248470,1777287141082,-919.84,0.00036438,120]
[421248471,1777287141091,-500.0,0.00036438,120]
[421248472,1777287141100,-1344.25,0.00036438,120]
[421248473,1777287141110,-500.0,0.00036438,30]
[421248474,1777287141120,-916.78,0.00036438,120]
[421248475,1777287141130,-500.0,0.00036438,60]
[421248476,1777287141139,-1345.97,0.00036438,120]
[421248477,1777287141150,-1078.03,0.00036438,120]
[421248478,1777287141160,-947.63,0.00036438,120]
[421248479,1777287141169,-549.91,0.00036438,120]
[421248480,1777287141179,-500.0,0.00036438,120]
[421248481,1777287141189,-748.29,0.00036438,120]
[421248482,1777287141199,-1742.02,0.00036438,120]
[421248483,1777287141209,-980.13,0.00036438,120]
[421248484,1777287141219,-547.89,0.00036438,120]
[421248485,1777287141228,-500.0,0.00036438,120]
[421248486,1777287141237,-808.71,0.00036438,120]
[421248487,1777287141246,-697.0,0.00036438,120]
[421248488,1777287141256,-698.74,0.00036438,120]
[421248489,1777287141266,-861.18,0.00036438,120]
[421248490,1777287141276,-599.72,0.00036438,120]
[421248491,1777287141286,-971.15,0.00036438,120]
[421248492,1777287141295,-1898.91,0.00036438,120]
[421248493,1777287141305,-2008.02,0.00036438,120]
[421248494,1777287141316,-500.0,0.00036438,120]
[421248495,1777287141329,-546.88,0.00036438,120]
[421248496,1777287141339,-500.0,0.00036438,120]
[421248497,1777287141348,-933.2,0.00036438,120]
[421248498,1777287141357,-923.43,0.00036438,120]
[421248499,1777287141367,-814.23,0.00036438,7]
[421248500,1777287141376,-500.0,0.00036438,120]
[421248501,1777287141386,-545.89,0.00036438,120]
[421248502,1777287141395,-500.0,0.00036438,120]
[421248503,1777287141404,-607.22,0.00036438,120]
[421248504,1777287141414,-500.0,0.00036438,120]
[421248505,1777287141424,-1022.01,0.00036438,120]
[421248506,1777287141433,-1403.37,0.00036438,120]
[421248507,1777287141443,-996.98,0.00036438,120]
[421248508,1777287141453,-500.0,0.00036438,120]
[421248509,1777287141462,-571.92,0.00036438,120]
[421248510,1777287141471,-500.0,0.00036438,120]
[421248511,1777287141481,-500.0,0.00036438,120]
[421248512,1777287141491,-500.0,0.00036438,120]
[421248513,1777287141500,-500.0,0.00036438,120]
[421248514,1777287141510,-2027.39,0.00036438,120]
[421248515,1777287141519,-544.78,0.00036438,120]
[421248516,1777287141529,-1173.63,0.00036438,120]
[421248517,1777287141538,-580.92,0.00036438,120]
[421248518,1777287141548,-957.19,0.00036438,120]
[421248519,1777287141557,-500.0,0.00036438,120]
[421248520,1777287141567,-500.0,0.00036438,120]
[421248521,1777287141577,-1129.42,0.00036438,120]
[421248522,1777287141587,-549.6,0.00036438,120]
[421248523,1777287141597,-500.0,0.00036438,120]
[421248524,1777287141607,-500.0,0.00036438,120]
[421248525,1777287141617,-502.90389046,0.00036438,120]
[421248526,1777287141627,-957.72,0.00036438,120]
[421248527,1777287141638,-475.87171881,0.00036438,120]
[421248528,1777287141648,-2273.93,0.00036438,120]
[421248529,1777287141658,-531.34,0.00036438,120]
[421248530,1777287141668,-500.0,0.00036438,120]
[421248531,1777287141678,-500.0,0.00036438,120]
[421248532,1777287141687,-826.33,0.00036438,120]
[421248533,1777287141696,-509.36,0.00036438,120]
[421248534,1777287141706,-373.86625105,0.00036438,120]
[421248535,1777287141715,-1144.83,0.00036438,120]
[421248536,1777287141725,-870.72,0.00036438,120]
[421248537,1777287141735,-500.0,0.00036438,120]
[421248538,1777287141745,-1987.57,0.00036438,120]
[421248539,1777287141755,-500.0,0.00036438,120]
[421248540,1777287141764,-1889.91,0.00036438,120]
[421248541,1777287141773,-997.41,0.00036438,120]
[421248542,1777287141784,-500.0,0.00036438,120]
[421248543,1777287141795,-645.47,0.00036438,120]
[421248544,1777287141804,-551.39,0.00036438,120]
[421248545,1777287141814,-607.71,0.00036438,120]
[421248546,1777287141824,-1410.28,0.00036438,120]
[421248547,1777287141833,-582.96407346,0.00036438,120]
[421248548,1777287141843,-1075.28,0.00036438,120]
[421248549,1777287141852,-512.2,0.00036438,120]
[421248550,1777287141862,-500.0,0.00036438,120]
[421248551,1777287141872,-571.84,0.00036438,120]
[421248552,1777287141881,-500.0,0.00036438,120]
[421248553,1777287141891,-670.88,0.00036438,120]
[421248554,1777287141900,-927.87,0.00036438,120]
[421248555,1777287141910,-733.46,0.00036438,120]
[421248556,1777287141920,-500.0,0.00036438,120]
[421248557,1777287141929,-845.56,0.00036438,120]
[421248558,1777287141939,-500.0,0.00036438,120]
[421248559,1777287141948,-500.0,0.00036438,120]
[421248560,1777287141958,-1708.75,0.00036438,120]
[421248561,1777287141967,-1389.02,0.00036438,120]
[421248562,1777287141977,-969.99,0.00036438,120]
[421248563,1777287141986,-721.4,0.00036438,120]
[421248564,1777287141996,-832.2,0.00036438,120]
[421248565,1777287142005,-1256.96,0.00036438,120]
[421248566,1777287142019,-822.73,0.00036438,120]
[421248567,1777287142029,-1697.87,0.00036438,120]
[421248568,1777287142039,-725.79,0.00036438,120]
[421248569,1777287142049,-740.81,0.00036438,120]
[421248570,1777287142060,-767.5,0.00036438,120]
[421248571,1777287142069,-704.65,0.00036438,120]
[421248572,1777287142079,-874.64,0.00036438,120]
[421248573,1777287142089,-500.0,0.00036438,120]
[421248574,1777287142099,-539.51,0.00036438,120]
[421248575,1777287142108,-1571.63,0.00036438,120]
[421248576,1777287142118,-3139.33,0.00036438,120]
[421248577,1777287142128,-631.89,0.00036438,120]
[421248578,1777287142139,-724.47,0.00036438,120]
[421248579,1777287142150,-714.42,0.00036438,120]
[421248580,1777287142160,-830.35,0.00036438,120]
[421248581,1777287142170,-529.87,0.00036438,120]
[421248582,1777287142180,-890.53,0.00036438,120]
[421248583,1777287142191,-633.28,0.00036438,120]
[421248584,1777287142201,-1042.08,0.00036438,120]
[421248585,1777287142212,-500.0,0.00036438,120]
[421248586,1777287142222,-1031.26,0.00036438,120]
[421248587,1777287142233,-500.0,0.00036438,120]
[421248588,1777287142244,-789.82,0.00036438,120]
[421248589,1777287142254,-500.0,0.00036438,120]
[421248590,1777287142264,-1044.44,0.00036438,7]
[421248591,1777287142274,-500.0,0.00036438,120]
[421248592,1777287142283,-2152.64,0.00036438,120]
[421248593,1777287142293,-500.0,0.00036438,120]
[421248594,1777287142303,-951.45,0.00036438,120]
[421248595,1777287142312,-10570.76,0.00036438,120]
[421248596,1777287142322,-500.0,0.00036438,120]
[421248597,1777287142332,-953.25,0.00036438,120]
[421248598,1777287142342,-500.0,0.00036438,120]
[421248599,1777287142351,-683.94,0.00036438,120]
[421248600,1777287142362,-1457.61,0.00036438,120]
[421248601,1777287142371,-853.59,0.00036438,120]
[421248602,1777287142381,-927.26,0.00036438,120]
[421248603,1777287142391,-692.0,0.00036438,120]
[421248604,1777287142401,-500.0,0.00036438,120]
[421248605,1777287142412,-1072.51,0.00036438,120]
[421248606,1777287142423,-2915.57,0.00036438,120]
[421248607,1777287142433,-500.0,0.00036438,120]
[421248608,1777287142443,-731.44,0.00036438,120]
[421248609,1777287142452,-701.43,0.00036438,120]
[421248610,1777287142462,-500.0,0.00036438,120]
[421248611,1777287142472,-954.88,0.00036438,120]
[421248612,1777287142481,-838.15,0.00036438,120]
[421248613,1777287142491,-1783.16,0.00036438,120]
[421248614,1777287142501,-500.0,0.00036438,120]
[421248615,1777287142513,-500.0,0.00036438,120]
[421248616,1777287142523,-4705.11,0.00036438,120]
[421248617,1777287142533,-1730.6,0.00036438,120]
[421248618,1777287142543,-500.0,0.00036438,120]
[421248619,1777287142552,-1123.77,0.00036438,120]
[421248620,1777287142562,-500.0,0.00036438,120]
[421248621,1777287142573,-1408.68,0.00036438,120]
[421248622,1777287142583,-714.81,0.00036438,120]
[421248623,1777287142593,-1779.59,0.00036438,120]
[421248624,1777287142603,-500.0,0.00036438,120]
[421248625,1777287142613,-5381.05,0.00036438,120]
[421248626,1777287142622,-667.82,0.00036438,120]
[421248627,1777287142632,-922.62,0.00036438,120]
[421248628,1777287142642,-500.0,0.00036438,120]
[421248629,1777287142651,-625.44,0.00036438,5]
[421248630,1777287142662,-1690.78,0.00036438,120]
[421248631,1777287142672,-2035.1,0.00036438,120]
[421248632,1777287142682,-674.61,0.00036438,120]
[421248633,1777287142692,-500.0,0.00036438,120]
[421248634,1777287142701,-1164.41,0.00036438,120]
[421248635,1777287142711,-1082.08,0.00036438,120]
[421248636,1777287142721,-998.96,0.00036438,120]
[421248637,1777287142731,-500.0,0.00036438,120]
[421248638,1777287142741,-1043.04,0.00036438,120]
[421248639,1777287142751,-784.08,0.00036438,120]
[421248640,1777287142761,-1079.64,0.00036438,120]
[421248641,1777287142770,-1143.94,0.00036438,120]
[421248642,1777287142782,-1451.57,0.00036438,120]
[421248643,1777287142792,-819.21,0.00036438,120]
[421248644,1777287143129,-1138.56,0.00036438,120]
[421248645,1777287143145,-601.09,0.00036438,120]
[421248646,1777287143155,-4201.7,0.00036438,120]
[421248647,1777287143165,-996.55,0.00036438,120]
[421248648,1777287143175,-1047.55,0.00036438,120]
[421248649,1777287143185,-541.91,0.00036438,120]
[421248650,1777287143197,-500.0,0.00036438,120]
[421248651,1777287143209,-795.18,0.00036438,120]
[421248652,1777287143219,-1162.36,0.00036438,120]
[421248653,1777287143230,-845.1,0.00036438,120]
[421248654,1777287143240,-500.0,0.00036438,120]
[421248655,1777287143251,-1487.38,0.00036438,120]
[421248656,1777287143261,-500.0,0.00036438,120]
[421248657,1777287143271,-500.0,0.00036438,120]
[421248658,1777287143281,-500.0,0.00036438,120]
[421248659,1777287143292,-898.94,0.00036438,120]
[421248660,1777287143301,-2636.09,0.00036438,120]
[421248661,1777287143311,-500.0,0.00036438,120]
[421248662,1777287143321,-1789.45,0.00036438,120]
[421248663,1777287143331,-500.62,0.00036438,120]
[421248664,1777287143341,-500.0,0.00036438,120]
[421248665,1777287143351,-1085.3,0.00036438,120]
[421248666,1777287143361,-892.08,0.00036438,120]
[421248667,1777287143372,-631.37,0.00036438,120]
[421248668,1777287143382,-500.0,0.00036438,120]
[421248669,1777287143391,-581.62,0.00036438,120]
[421248670,1777287143400,-808.43,0.00036438,120]
[421248671,1777287143411,-741.62,0.00036438,120]
[421248672,1777287143420,-500.0,0.00036438,120]
[421248673,1777287143430,-500.0,0.00036438,120]
[421248674,1777287143441,-762.27,0.00036438,120]
[421248675,1777287143451,-1157.96,0.00036438,120]
[421248676,1777287143461,-633.93,0.00036438,120]
[421248677,1777287143472,-500.0,0.00036438,120]
[421248678,1777287143482,-874.69,0.00036438,120]
[421248679,1777287143493,-900.98,0.00036438,120]
[421248680,1777287143503,-500.0,0.00036438,120]
[421248681,1777287143513,-10204.73,0.00036438,120]
[421248682,1777287143524,-1526.17,0.00036438,120]
[421248683,1777287143533,-500.0,0.00036438,120]
[421248684,1777287143543,-500.0,0.00036438,120]
[421248685,1777287143553,-500.0,0.00036438,120]
[421248686,1777287143563,-891.6,0.00036438,120]
[421248687,1777287143573,-1367.53,0.00036438,120]
[421248688,1777287143582,-500.0,0.00036438,120]
[421248689,1777287143592,-683.25,0.00036438,120]
[421248690,1777287143602,-737.72,0.00036438,120]
[421248691,1777287143612,-598.89448302,0.00036438,120]
[421248692,1777287143622,-10627.51,0.00036438,11]
[421248693,1777287143632,-1508.4,0.00036438,120]
[421248694,1777287143641,-500.0,0.00036438,120]
[421248695,1777287143651,-944.61,0.00036438,120]
[421248696,1777287143661,-1952.39,0.00036438,120]
[421248697,1777287143671,-992.31,0.00036438,120]
[421248698,1777287143681,-644.32,0.00036438,120]
[421248699,1777287143691,-855.86,0.00036438,120]
[421248700,1777287143701,-938.15,0.00036438,120]
[421248701,1777287143711,-976.87,0.00036438,120]
[421248702,1777287143721,-500.0,0.00036438,120]
[421248703,1777287143731,-500.0,0.00036438,120]
[421248704,1777287143740,-505.03,0.00036438,120]
[421248705,1777287143750,-889.14,0.00036438,120]
[421248706,1777287143760,-500.0,0.00036438,120]
[421248707,1777287143770,-816.73,0.00036438,120]
[421248708,1777287143779,-624.72,0.00036438,120]
[421248709,1777287143789,-9821.09,0.00036438,14]
[421248710,1777287143799,-523.03,0.00036438,120]
[421248711,1777287143809,-2650.84,0.00036438,2]
[421248712,1777287143819,-500.0,0.00036438,120]
[421248713,1777287143829,-822.98,0.00036438,120]
[421248714,1777287143838,-729.37,0.00036438,120]
[421248715,1777287143849,-1000.0,0.00036438,120]
[421248716,1777287143859,-1044.79,0.00036438,120]
[421248717,1777287143868,-2033.75,0.00036438,120]
[421248718,1777287143878,-2315.34,0.00036438,120]
[421248719,1777287143888,-957.71,0.00036438,120]
[421248720,1777287143898,-500.0,0.00036438,120]
[421248721,1777287143908,-1144.22,0.00036438,120]
[421248722,1777287143918,-872.94,0.00036438,120]
[421248723,1777287143928,-651.78,0.00036438,120]
[421248724,1777287143938,-500.0,0.00036438,120]
[421248725,1777287143949,-905.69,0.00036438,120]
[421248726,1777287143958,-659.77,0.00036438,120]
[421248727,1777287143968,-572.93,0.00036438,120]
[421248728,1777287143978,-526.89,0.00036438,120]
[421248729,1777287143987,-2198.73,0.00036438,31]
[421248730,1777287143997,-936.24,0.00036438,120]
[421248731,1777287144007,-7236.62,0.00036438,120]
[421248732,1777287144017,-601.2,0.00036438,120]
[421248733,1777287144027,-1500.0,0.00036438,120]
[421248734,1777287144036,-500.0,0.00036438,120]
[421248735,1777287144046,-500.0,0.00036438,120]
[421248736,1777287144056,-213.22,0.00036514,10]
[421248737,1777287144067,-2000.0,0.00036595,120]
[421248738,1777287144077,-2000.0,0.00036595,120]
[421248739,1777287144087,-2000.0,0.00036595,120]
[421248740,1777287144097,-1282.341454,0.000366,120]
[421248741,1777287144107,-600.09792565,0.0003671,120]
[421248742,1777287144116,-40919.8,0.00036712,120]
[421248743,1777287144127,-5510.884336,0.00036712,120]
[421248744,1777287144137,-406.931409,0.00036712,120]
[421248745,1777287144146,-325.762595,0.00036712,120]
[421248746,1777287144156,-342.964341,0.00036712,120]
[421248747,1777287144166,-2698.281126,0.00036712,120]
[421248748,1777287144176,-433.43617075,0.00036712,120]
[421248749,1777287144186,-500.0,0.00036712,120]
[421248750,1777287144196,-863.36,0.00036712,120]
[421248751,1777287144206,-500.0,0.00036712,2]
[421248752,1777287144216,-500.0,0.00036712,120]
[421248753,1777287144226,-599.06,0.00036712,120]
[421248754,1777287144236,-640.83,0.00036712,120]
[421248755,1777287144245,-565.53,0.00036712,120]
[421248756,1777287144255,-1211.95,0.00036712,120]
[421248757,1777287144265,-553.4,0.00036712,120]
[421248758,1777287144274,-715.07,0.00036712,120]
[421248759,1777287144284,-500.0,0.00036712,120]
[421248760,1777287144294,-938.55,0.00036712,120]
[421248761,1777287144305,-1090.36,0.00036712,120]
[421248762,1777287144314,-634.95,0.00036712,120]
[421248763,1777287144324,-527.35500918,0.00036712,120]
[421248764,1777287144334,-528.14,0.00036712,120]
[421248765,1777287144345,-1072.38,0.00036712,120]
[421248766,1777287144354,-1314.31,0.00036712,120]
[421248767,1777287144364,-703.47,0.00036712,120]
[421248768,1777287144374,-500.0,0.00036712,120]
[421248769,1777287144383,-500.0,0.00036712,120]
[421248770,1777287144392,-421.9293024,0.00036712,120]
[421248771,1777287144402,-516.81,0.00036712,120]
[421248772,1777287144411,-2357.31,0.00036712,120]
[421248773,1777287144421,-722.01,0.00036712,120]
[421248774,1777287144431,-500.0,0.00036712,120]
[421248775,1777287144440,-500.0,0.00036712,120]
[421248776,1777287144450,-500.0,0.00036712,120]
[421248777,1777287144459,-222.73160842,0.00036712,120]
[421248778,1777287144469,-1649.9,0.00036712,30]
[421248779,1777287144479,-527.75,0.00036712,120]
[421248780,1777287144488,-663.98,0.00036712,120]
[421248781,1777287144498,-752.81,0.00036712,120]
[421248782,1777287144507,-696.22,0.00036712,120]
[421248783,1777287144516,-500.0,0.00036712,120]
[421248784,1777287144526,-500.0,0.00036712,120]
[421248785,1777287144536,-1446.95,0.00036712,120]
[421248786,1777287144546,-964.96,0.00036712,120]
[421248787,1777287144556,-529.41,0.00036712,120]
[421248788,1777287144565,-500.0,0.00036712,120]
[421248789,1777287144575,-500.0,0.00036712,120]
[421248790,1777287144584,-500.0,0.00036712,120]
[421248791,1777287144594,-1077.32,0.00036712,120]
[421248792,1777287144604,-1000.0,0.00036712,120]
[421248793,1777287144613,-949.83,0.00036712,120]
[421248794,1777287144623,-765.4,0.00036712,120]
[421248795,1777287144633,-599.76,0.00036712,120]
[421248796,1777287144643,-342.79634729,0.00036712,120]
[421248797,1777287144652,-500.0,0.00036712,120]
[421248798,1777287144662,-500.0,0.00036712,120]
[421248799,1777287144671,-812.99,0.00036712,120]
[421248800,1777287144680,-1319.91,0.00036712,120]
[421248801,1777287144690,-559.35,0.00036712,120]
[421248802,1777287144700,-536.67786168,0.00036712,120]
[421248803,1777287144709,-1706.39,0.00036712,120]
[421248804,1777287144718,-500.0,0.00036712,120]
[421248805,1777287144728,-500.0,0.00036712,120]
[421248806,1777287144738,-668.63,0.00036712,120]
[421248807,1777287144748,-500.0,0.00036712,120]
[421248808,1777287144758,-1799.8,0.00036712,30]
[421248809,1777287144768,-2310.82,0.00036712,120]
[421248810,1777287144777,-500.0,0.00036712,120]
[421248811,1777287144788,-951.83,0.00036712,120]
[421248812,1777287144798,-500.0,0.00036712,120]
[421248813,1777287144807,-500.0,0.00036712,120]
[421248814,1777287144818,-500.0,0.00036712,120]
[421248815,1777287144828,-500.0,0.00036712,120]
[421248816,1777287144838,-691.55,0.00036712,120]
[421248817,1777287144848,-500.0,0.00036712,120]
[421248818,1777287144857,-822.42,0.00036712,120]
[421248819,1777287144868,-690.22,0.00036712,120]
[421248820,1777287144877,-1041.51,0.00036712,120]
[421248821,1777287144887,-817.53,0.00036712,120]
[421248822,1777287144897,-500.0,0.00036712,120]
[421248823,1777287144906,-547.12293932,0.00036712,120]
[421248824,1777287144917,-500.0,0.00036712,120]
[421248825,1777287144927,-812.8,0.00036712,120]
[421248826,1777287144937,-894.99,0.00036712,120]
[421248827,1777287144947,-1018.47,0.00036712,120]
[421248828,1777287144956,-500.0,0.00036712,120]
[421248829,1777287144966,-1560.45,0.00036712,10]
[421248830,1777287144976,-654.65,0.00036712,120]
[421248831,1777287144985,-770.15,0.00036712,120]
[421248832,1777287144995,-747.23,0.00036712,120]
[421248833,1777287145004,-592.21,0.00036712,120]
[421248834,1777287145014,-1047.65,0.00036712,120]
[421248835,1777287145023,-500.0,0.00036712,120]
[421248836,1777287145033,-548.93,0.00036712,120]
[421248837,1777287145042,-500.0,0.00036712,120]
[421248838,1777287145052,-500.0,0.00036712,120]
[421248839,1777287145062,-1885.25,0.00036712,120]
[421248840,1777287145072,-632.88,0.00036712,120]
[421248841,1777287145082,-810.82,0.00036712,120]
[421248842,1777287145091,-1242.85,0.00036712,120]
[421248843,1777287145101,-696.25,0.00036712,120]
[421248844,1777287145110,-500.0,0.00036712,120]
[421248845,1777287145120,-1579.01,0.00036712,120]
[421248846,1777287145130,-601.37,0.00036712,120]
[421248847,1777287145140,-1456.44,0.00036712,120]
[421248848,1777287145149,-595.98,0.00036712,120]
[421248849,1777287145159,-500.0,0.00036712,120]
[421248850,1777287145168,-1572.92,0.00036712,120]
[421248851,1777287145179,-1223.21,0.00036712,120]
[421248852,1777287145188,-500.0,0.00036712,120]
[421248853,1777287145197,-500.0,0.00036712,120]
[421248854,1777287145206,-685.94,0.00036712,120]
[421248855,1777287145214,-996.26,0.00036712,120]
[421248856,1777287145223,-987.31,0.00036712,120]
[421248857,1777287145232,-977.11,0.00036712,120]
[421248858,1777287145244,-1114.4,0.00036712,120]
[421248859,1777287145254,-922.87,0.00036712,120]
[421248860,1777287145263,-694.64,0.00036712,120]